{"text_format":"1","workbook":"xlsx","n_sheets":3,"sheets":["Hinnapakkumus","meny","Kasutusjuhend"],"not_rendered":{"charts":0,"images":1,"macros":1,"external_links":0,"defined_names":2,"comments":0,"pivot_tables":0},"unopened":[],"bounds":{"document_bytes":16777216,"sheet_cells":100000,"rows_first":2000,"rows_last":500,"rows_between":2000,"halvings":0,"cell_chars":16384,"cell_head_chars":4096},"cells_cut":0,"cells_raw":0,"read":"whole","date_system":"1900"}

{"sheet":"Hinnapakkumus","index":0,"n_rows":222,"n_cols":27,"rows_kept":222,"cut":false,"hidden":false,"merged":[[29,1,29,2],[21,1,21,3],[20,4,20,6],[20,1,20,3],[15,1,15,3],[16,1,16,3],[16,4,16,6],[24,4,24,6],[23,1,23,3],[23,4,23,6],[17,1,17,3],[19,1,19,3],[24,1,24,3],[12,4,12,6],[13,1,13,3],[14,4,14,6],[15,4,15,6],[19,4,19,6],[14,1,14,3],[13,4,13,6],[4,2,4,6],[21,4,21,6],[18,1,18,6],[22,1,22,6],[17,4,17,6],[5,1,5,6],[8,1,8,6],[11,4,11,6],[9,4,9,6],[9,1,9,3],[11,1,11,3],[7,1,7,3],[7,4,7,6],[10,1,10,3],[10,4,10,6],[12,1,12,3]]}
[null,null,null,null,null,null,"Kinnitatud Põllumajanduse Registrite"]
[null,null,null,null,null,null,"            ja Informatsiooni Ameti peadirektori"]
[null,null,null,null,null,null,"           24.01.2024 käskkirjaga nr 1-12/24/5"]
[]
[null,null,"LEADER 2023-2027 projektitoetused"]
[null,"HINNAPAKKUMUS"]
[]
[null,"Taotleja"]
[]
[null,"Pakkumuse esitaja (ettevõtte nimi)"]
[null,"Pakkumuse koostas (eesnimi, perekonnanimi)"]
[null,"Registrikood",null,null,null,null,null,null,null,null,null,null,null,null,null,null,null,null,null,null,null,null,null,null,"Vormi  kuupäev",null,"12022018 MI"]
[null,"Telefon",null,null,null,null,null,null,null,null,null,null,null,null,null,null,null,null,null,null,null,null,null,null,"Taotleja",null,{"$f":"IF(E8=\"\",\"\",E8)","v":""}]
[null,"E-post",null,null,null,null,null,null,null,null,null,null,null,null,null,null,null,null,null,null,null,null,null,null,"Pakkumuse esitaja:",null,{"$f":"IF(E10=\"\",\"\",E10)","v":""}]
[null,"Majandustegevusteate number",null,null,null,null,null,null,null,null,null,null,null,null,null,null,null,null,null,null,null,null,null,null,"Registrikood:",null,{"$f":"IF(E12=\"\",\"\",E12)","v":""}]
[null,"Pakkumuse esitamise kuupäev ",null,null,null,null,null,null,null,null,null,null,null,null,null,null,null,null,null,null,null,null,null,null,"tel:",null,{"$f":"IF(E13=\"\",\"\",E13)","v":""}]
[null,"Pakkumus kehtib",null,null,null,null,null,null,null,null,null,null,null,null,null,null,null,null,null,null,null,null,null,null,"e-post:",null,{"$f":"IF(E14=\"\",\"\",E14)","v":""}]
[null,"Pakkumuse nr",null,null,null,null,null,null,null,null,null,null,null,null,null,null,null,null,null,null,null,null,null,null,"Majandustegevusteate number:",null,{"$f":"IF(E15=\"\",\"\",E15)","v":""}]
[null,null,null,null,null,null,null,null,null,null,null,null,null,null,null,null,null,null,null,null,null,null,null,null,"Pakkumuse esitamise kuupäev: ",null,{"$f":"IF(E16=\"\",\"\",E16)","v":""}]
[null,"Ehitise nimetus",null,null,null,null,null,null,null,null,null,null,null,null,null,null,null,null,null,null,null,null,null,null,"Pakkumuse nr:",null,{"$f":"IF(E18=\"\",\"\",E18)","v":""}]
[null,"Ehitisregistri kood",null,null,null,null,null,null,null,null,null,null,null,null,null,null,null,null,null,null,null,null,null,null,"Ehitise nimetus:",null,{"$f":"IF(E20=\"\",\"\",E20)","v":""}]
[null,"Katastritunnus",null,null,null,null,null,null,null,null,null,null,null,null,null,null,null,null,null,null,null,null,null,null,"Ehitisregistri kood",null,{"$f":"IF(E21=\"\",\"\",E21)","v":""}]
[null,null,null,null,null,null,null,null,null,null,null,null,null,null,null,null,null,null,null,null,null,null,null,null,"Katastritunnus",null,{"$f":"IF(E22=\"\",\"\",E22)","v":""}]
[null,"Ehitusprojekti koostaja ja ehitusprojekti nr",null,null,null,null,null,null,null,null,null,null,null,null,null,null,null,null,null,null,null,null,null,null,"Ehitusprojekti koostaja ja ehitsuprojekti nr",null,{"$f":"IF(E24=\"\",\"\",E24)","v":""}]
[null,"Lisateave",null,null,null,null,null,null,null,null,null,null,null,null,null,null,null,null,null,null,null,null,null,null,"Lisainformatsioon",null,{"$f":"IF(E25=\"\",\"\",E25)","v":""}]
[]
[null,null,null,null,null,"Kulud kokku (EUR): ",{"$f":"SUM(G31,G60,G81,G98,G123,G152,G173,G202)","v":0},null,null,null,null,null,null,null,null,null,null,null,null,null,null,null,null,null,"Käibemaks (20%):",null,{"$f":"G28","v":0}]
[null,null,null,null,null,"Käibemaks (22%):",{"$f":"SUM(G27*22%)","v":0},null,null,null,null,null,null,null,null,null,null,null,null,null,null,null,null,null,"Kulud + KM (EUR):",null,{"$f":"G29","v":0}]
[null,null,null,null,null,"Kulud + KM (EUR):",{"$f":"SUM(G27+G28)","v":0}]
[null,null,null,"Ühik","Maht","Ühiku maksumus\n (EUR)","Maksumus  \n(EUR)",null,null,null,null,null,null,null,null,null,null,null,null,null,null,null,null,null,{"$f":"C31","v":"VÄLISRAJATISED "},null,{"$f":"G31","v":0}]
[null,1,"VÄLISRAJATISED ",null,null,null,{"$f":"SUM(G32,G36,G40,G44,G48,G52,G56)","v":0},null,null,null,null,null,null,null,null,null,null,null,null,null,null,null,null,null,{"$f":"C32","v":"Ettevalmistus ja lammutus"},null,{"$f":"G32","v":0}]
[null,11,"Ettevalmistus ja lammutus",null,null,null,{"$f":"SUM(G33:G35)","v":0}]
[null,null,null,null,null,null,{"$f":"ROUND(SUM(E33*F33),2)","v":0}]
[null,null,null,null,null,null,{"$f":"ROUND(SUM(E34*F34),2)","v":0}]
[null,null,null,null,null,null,{"$f":"ROUND(SUM(E35*F35),2)","v":0},null,null,null,null,null,null,null,null,null,null,null,null,null,null,null,null,null,{"$f":"C36","v":"Hoonealune süvend"},null,{"$f":"G36","v":0}]
[null,12,"Hoonealune süvend",null,null,null,{"$f":"SUM(G37:G39)","v":0}]
[null,null,null,null,null,null,{"$f":"ROUND(SUM(E37*F37),2)","v":0}]
[null,null,null,null,null,null,{"$f":"ROUND(SUM(E38*F38),2)","v":0}]
[null,null,null,null,null,null,{"$f":"ROUND(SUM(E39*F39),2)","v":0},null,null,null,null,null,null,null,null,null,null,null,null,null,null,null,null,null,{"$f":"C40","v":"Hoonevälised ehitised"},null,{"$f":"G40","v":0}]
[null,13,"Hoonevälised ehitised",null,null,null,{"$f":"SUM(G41:G43)","v":0}]
[null,null,null,null,null,null,{"$f":"ROUND(SUM(E41*F41),2)","v":0}]
[null,null,null,null,null,null,{"$f":"ROUND(SUM(E42*F42),2)","v":0}]
[null,null,null,null,null,null,{"$f":"ROUND(SUM(E43*F43),2)","v":0},null,null,null,null,null,null,null,null,null,null,null,null,null,null,null,null,null,{"$f":"C44","v":"Välisvõrgud"},null,{"$f":"G44","v":0}]
[null,14,"Välisvõrgud",null,null,null,{"$f":"SUM(G45:G47)","v":0}]
[null,null,null,null,null,null,{"$f":"ROUND(SUM(E45*F45),2)","v":0}]
[null,null,null,null,null,null,{"$f":"ROUND(SUM(E46*F46),2)","v":0}]
[null,null,null,null,null,null,{"$f":"ROUND(SUM(E47*F47),2)","v":0},null,null,null,null,null,null,null,null,null,null,null,null,null,null,null,null,null,{"$f":"C48","v":"Kaeved maa-alal"},null,{"$f":"G48","v":0}]
[null,15,"Kaeved maa-alal",null,null,null,{"$f":"SUM(G49:G51)","v":0}]
[null,null,null,null,null,null,{"$f":"ROUND(SUM(E49*F49),2)","v":0}]
[null,null,null,null,null,null,{"$f":"ROUND(SUM(E50*F50),2)","v":0}]
[null,null,null,null,null,null,{"$f":"ROUND(SUM(E51*F51),2)","v":0},null,null,null,null,null,null,null,null,null,null,null,null,null,null,null,null,null,{"$f":"C52","v":"Maa-ala pinnakatted"},null,{"$f":"G52","v":0}]
[null,16,"Maa-ala pinnakatted",null,null,null,{"$f":"SUM(G53:G55)","v":0}]
[null,null,null,null,null,null,{"$f":"ROUND(SUM(E53*F53),2)","v":0}]
[null,null,null,null,null,null,{"$f":"ROUND(SUM(E54*F54),2)","v":0}]
[null,null,null,null,null,null,{"$f":"ROUND(SUM(E55*F55),2)","v":0},null,null,null,null,null,null,null,null,null,null,null,null,null,null,null,null,null,{"$f":"C60","v":"ALUSED JA VUNDAMENDID "},null,{"$f":"G60","v":0}]
[null,17,"Väikeehitised maa-alal",null,null,null,{"$f":"SUM(G57:G59)","v":0}]
[null,null,null,null,null,null,{"$f":"ROUND(SUM(E57*F57),2)","v":0}]
[null,null,null,null,null,null,{"$f":"ROUND(SUM(E58*F58),2)","v":0}]
[null,null,null,null,null,null,{"$f":"ROUND(SUM(E59*F59),2)","v":0}]
[null,2,"ALUSED JA VUNDAMENDID ",null,null,null,{"$f":"SUM(G61,G65,G69,G73,G77)","v":0},null,null,null,null,null,null,null,null,null,null,null,null,null,null,null,null,null,{"$f":"C61","v":"Rostvärgid ja taldmikud"},null,{"$f":"G61","v":0}]
[null,21,"Rostvärgid ja taldmikud",null,null,null,{"$f":"SUM(G62:G64)","v":0}]
[null,null,null,null,null,null,{"$f":"ROUND(SUM(E62*F62),2)","v":0}]
[null,null,null,null,null,null,{"$f":"ROUND(SUM(E63*F63),2)","v":0}]
[null,null,null,null,null,null,{"$f":"ROUND(SUM(E64*F64),2)","v":0},null,null,null,null,null,null,null,null,null,null,null,null,null,null,null,null,null,{"$f":"C65","v":"Vundamendid"},null,{"$f":"G65","v":0}]
[null,22,"Vundamendid",null,null,null,{"$f":"SUM(G66:G68)","v":0}]
[null,null,null,null,null,null,{"$f":"ROUND(SUM(E66*F66),2)","v":0}]
[null,null,null,null,null,null,{"$f":"ROUND(SUM(E67*F67),2)","v":0}]
[null,null,null,null,null,null,{"$f":"ROUND(SUM(E68*F68),2)","v":0},null,null,null,null,null,null,null,null,null,null,null,null,null,null,null,null,null,{"$f":"C69","v":"Aluspõrandad"},null,{"$f":"G69","v":0}]
[null,23,"Aluspõrandad",null,null,null,{"$f":"SUM(G70:G72)","v":0}]
[null,null,null,null,null,null,{"$f":"ROUND(SUM(E70*F70),2)","v":0}]
[null,null,null,null,null,null,{"$f":"ROUND(SUM(E71*F71),2)","v":0}]
[null,null,null,null,null,null,{"$f":"ROUND(SUM(E72*F72),2)","v":0},null,null,null,null,null,null,null,null,null,null,null,null,null,null,null,null,null,{"$f":"C73","v":"Vaiad ja tugevdustarindid"},null,{"$f":"G73","v":0}]
[null,24,"Vaiad ja tugevdustarindid",null,null,null,{"$f":"SUM(G74:G76)","v":0}]
[null,null,null,null,null,null,{"$f":"ROUND(SUM(E74*F74),2)","v":0}]
[null,null,null,null,null,null,{"$f":"ROUND(SUM(E75*F75),2)","v":0}]
[null,null,null,null,null,null,{"$f":"ROUND(SUM(E76*F76),2)","v":0},null,null,null,null,null,null,null,null,null,null,null,null,null,null,null,null,null,{"$f":"C77","v":"Eritarindid"},null,{"$f":"G77","v":0}]
[null,25,"Eritarindid",null,null,null,{"$f":"SUM(G78:G80)","v":0}]
[null,null,null,null,null,null,{"$f":"ROUND(SUM(E78*F78),2)","v":0}]
[null,null,null,null,null,null,{"$f":"ROUND(SUM(E79*F79),2)","v":0}]
[null,null,null,null,null,null,{"$f":"ROUND(SUM(E80*F80),2)","v":0},null,null,null,null,null,null,null,null,null,null,null,null,null,null,null,null,null,{"$f":"C81","v":"KANDETARINDID"},null,{"$f":"G81","v":0}]
[null,3,"KANDETARINDID",null,null,null,{"$f":"SUM(G82,G86,G90,G94)","v":0},null,null,null,null,null,null,null,null,null,null,null,null,null,null,null,null,null,{"$f":"C82","v":"Metalltarindid"},null,{"$f":"G82","v":0}]
[null,31,"Metalltarindid",null,null,null,{"$f":"SUM(G83:G85)","v":0}]
[null,null,null,null,null,null,{"$f":"ROUND(SUM(E83*F83),2)","v":0}]
[null,null,null,null,null,null,{"$f":"ROUND(SUM(E84*F84),2)","v":0}]
[null,null,null,null,null,null,{"$f":"ROUND(SUM(E85*F85),2)","v":0},null,null,null,null,null,null,null,null,null,null,null,null,null,null,null,null,null,{"$f":"C86","v":"Kandvad ja välisseinad"},null,{"$f":"G86","v":0}]
[null,32,"Kandvad ja välisseinad",null,null,null,{"$f":"SUM(G87:G89)","v":0}]
[null,null,null,null,null,null,{"$f":"ROUND(SUM(E87*F87),2)","v":0}]
[null,null,null,null,null,null,{"$f":"ROUND(SUM(E88*F88),2)","v":0}]
[null,null,null,null,null,null,{"$f":"ROUND(SUM(E89*F89),2)","v":0},null,null,null,null,null,null,null,null,null,null,null,null,null,null,null,null,null,{"$f":"C90","v":"Vahe- ja katuslaed"},null,{"$f":"G90","v":0}]
[null,33,"Vahe- ja katuslaed",null,null,null,{"$f":"SUM(G91:G93)","v":0}]
[null,null,null,null,null,null,{"$f":"ROUND(SUM(E91*F91),2)","v":0}]
[null,null,null,null,null,null,{"$f":"ROUND(SUM(E92*F92),2)","v":0}]
[null,null,null,null,null,null,{"$f":"ROUND(SUM(E93*F93),2)","v":0},null,null,null,null,null,null,null,null,null,null,null,null,null,null,null,null,null,{"$f":"C94","v":"Trepielemendid"},null,{"$f":"G94","v":0}]
[null,34,"Trepielemendid",null,null,null,{"$f":"SUM(G95:G97)","v":0}]
[null,null,null,null,null,null,{"$f":"ROUND(SUM(E95*F95),2)","v":0}]
[null,null,null,null,null,null,{"$f":"ROUND(SUM(E96*F96),2)","v":0}]
[null,null,null,null,null,null,{"$f":"ROUND(SUM(E97*F97),2)","v":0},null,null,null,null,null,null,null,null,null,null,null,null,null,null,null,null,null,{"$f":"C98","v":"FASSAADIELEMENDID JA KATUSED "},null,{"$f":"G98","v":0}]
[null,4,"FASSAADIELEMENDID JA KATUSED ",null,null,null,{"$f":"SUM(G99,G103,G107,G111,G115,G119)","v":0},null,null,null,null,null,null,null,null,null,null,null,null,null,null,null,null,null,{"$f":"C99","v":"Klaasfassaadid, vitriinid ja eriaknad"},null,{"$f":"G99","v":0}]
[null,41,"Klaasfassaadid, vitriinid ja eriaknad",null,null,null,{"$f":"SUM(G100:G102)","v":0}]
[null,null,null,null,null,null,{"$f":"ROUND(SUM(E100*F100),2)","v":0}]
[null,null,null,null,null,null,{"$f":"ROUND(SUM(E101*F101),2)","v":0}]
[null,null,null,null,null,null,{"$f":"ROUND(SUM(E102*F102),2)","v":0},null,null,null,null,null,null,null,null,null,null,null,null,null,null,null,null,null,{"$f":"C103","v":"Aknad"},null,{"$f":"G103","v":0}]
[null,42,"Aknad",null,null,null,{"$f":"SUM(G104:G106)","v":0}]
[null,null,null,null,null,null,{"$f":"ROUND(SUM(E104*F104),2)","v":0}]
[null,null,null,null,null,null,{"$f":"ROUND(SUM(E105*F105),2)","v":0}]
[null,null,null,null,null,null,{"$f":"ROUND(SUM(E106*F106),2)","v":0},null,null,null,null,null,null,null,null,null,null,null,null,null,null,null,null,null,{"$f":"C107","v":"Välisuksed ja väravad"},null,{"$f":"G107","v":0}]
[null,43,"Välisuksed ja väravad",null,null,null,{"$f":"SUM(G108:G110)","v":0}]
[null,null,null,null,null,null,{"$f":"ROUND(SUM(E108*F108),2)","v":0}]
[null,null,null,null,null,null,{"$f":"ROUND(SUM(E109*F109),2)","v":0}]
[null,null,null,null,null,null,{"$f":"ROUND(SUM(E110*F110),2)","v":0},null,null,null,null,null,null,null,null,null,null,null,null,null,null,null,null,null,{"$f":"C111","v":"Rõdud ja terrassid"},null,{"$f":"G111","v":0}]
[null,44,"Rõdud ja terrassid",null,null,null,{"$f":"SUM(G112:G114)","v":0}]
[null,null,null,null,null,null,{"$f":"ROUND(SUM(E112*F112),2)","v":0}]
[null,null,null,null,null,null,{"$f":"ROUND(SUM(E113*F113),2)","v":0}]
[null,null,null,null,null,null,{"$f":"ROUND(SUM(E114*F114),2)","v":0},null,null,null,null,null,null,null,null,null,null,null,null,null,null,null,null,null,{"$f":"C115","v":"Piirded ja käiguteed"},null,{"$f":"G115","v":0}]
[null,45,"Piirded ja käiguteed",null,null,null,{"$f":"SUM(G116:G118)","v":0}]
[null,null,null,null,null,null,{"$f":"ROUND(SUM(E116*F116),2)","v":0}]
[null,null,null,null,null,null,{"$f":"ROUND(SUM(E117*F117),2)","v":0}]
[null,null,null,null,null,null,{"$f":"ROUND(SUM(E118*F118),2)","v":0},null,null,null,null,null,null,null,null,null,null,null,null,null,null,null,null,null,{"$f":"C119","v":"Katusetarindid"},null,{"$f":"G119","v":0}]
[null,46,"Katusetarindid",null,null,null,{"$f":"SUM(G120:G122)","v":0}]
[null,null,null,null,null,null,{"$f":"ROUND(SUM(E120*F120),2)","v":0}]
[null,null,null,null,null,null,{"$f":"ROUND(SUM(E121*F121),2)","v":0}]
[null,null,null,null,null,null,{"$f":"ROUND(SUM(E122*F122),2)","v":0},null,null,null,null,null,null,null,null,null,null,null,null,null,null,null,null,null,{"$f":"C123","v":"RUUMITARINDID JA PINNAKATTED"},null,{"$f":"G123","v":0}]
[null,5,"RUUMITARINDID JA PINNAKATTED",null,null,null,{"$f":"SUM(G124,G128,G132,G136,G140,G144,G148)","v":0},null,null,null,null,null,null,null,null,null,null,null,null,null,null,null,null,null,{"$f":"C124","v":"Vaheseinad"},null,{"$f":"G124","v":0}]
[null,51,"Vaheseinad",null,null,null,{"$f":"SUM(G125:G127)","v":0}]
[null,null,null,null,null,null,{"$f":"ROUND(SUM(E125*F125),2)","v":0}]
[null,null,null,null,null,null,{"$f":"ROUND(SUM(E126*F126),2)","v":0}]
[null,null,null,null,null,null,{"$f":"ROUND(SUM(E127*F127),2)","v":0},null,null,null,null,null,null,null,null,null,null,null,null,null,null,null,null,null,{"$f":"C128","v":"Siseuksed"},null,{"$f":"G128","v":0}]
[null,52,"Siseuksed",null,null,null,{"$f":"SUM(G129:G131)","v":0}]
[null,null,null,null,null,null,{"$f":"ROUND(SUM(E129*F129),2)","v":0}]
[null,null,null,null,null,null,{"$f":"ROUND(SUM(E130*F130),2)","v":0}]
[null,null,null,null,null,null,{"$f":"ROUND(SUM(E131*F131),2)","v":0},null,null,null,null,null,null,null,null,null,null,null,null,null,null,null,null,null,{"$f":"C132","v":"Siseseinte pinnakatted"},null,{"$f":"G132","v":0}]
[null,53,"Siseseinte pinnakatted",null,null,null,{"$f":"SUM(G133:G135)","v":0}]
[null,null,null,null,null,null,{"$f":"ROUND(SUM(E133*F133),2)","v":0}]
[null,null,null,null,null,null,{"$f":"ROUND(SUM(E134*F134),2)","v":0}]
[null,null,null,null,null,null,{"$f":"ROUND(SUM(E135*F135),2)","v":0},null,null,null,null,null,null,null,null,null,null,null,null,null,null,null,null,null,{"$f":"C136","v":"Lagede pinnakatted"},null,{"$f":"G136","v":0}]
[null,54,"Lagede pinnakatted",null,null,null,{"$f":"SUM(G137:G139)","v":0}]
[null,null,null,null,null,null,{"$f":"ROUND(SUM(E137*F137),2)","v":0}]
[null,null,null,null,null,null,{"$f":"ROUND(SUM(E138*F138),2)","v":0}]
[null,null,null,null,null,null,{"$f":"ROUND(SUM(E139*F139),2)","v":0},null,null,null,null,null,null,null,null,null,null,null,null,null,null,null,null,null,{"$f":"C140","v":"Treppide pinnakatted"},null,{"$f":"G140","v":0}]
[null,55,"Treppide pinnakatted",null,null,null,{"$f":"SUM(G141:G143)","v":0}]
[null,null,null,null,null,null,{"$f":"ROUND(SUM(E141*F141),2)","v":0}]
[null,null,null,null,null,null,{"$f":"ROUND(SUM(E142*F142),2)","v":0}]
[null,null,null,null,null,null,{"$f":"ROUND(SUM(E143*F143),2)","v":0},null,null,null,null,null,null,null,null,null,null,null,null,null,null,null,null,null,{"$f":"C144","v":"Põrandad ja põrandakatted"},null,{"$f":"G144","v":0}]
[null,56,"Põrandad ja põrandakatted",null,null,null,{"$f":"SUM(G145:G147)","v":0}]
[null,null,null,null,null,null,{"$f":"ROUND(SUM(E145*F145),2)","v":0}]
[null,null,null,null,null,null,{"$f":"ROUND(SUM(E146*F146),2)","v":0}]
[null,null,null,null,null,null,{"$f":"ROUND(SUM(E147*F147),2)","v":0},null,null,null,null,null,null,null,null,null,null,null,null,null,null,null,null,null,{"$f":"C148","v":"Eriruumide pinnakatted"},null,{"$f":"G148","v":0}]
[null,57,"Eriruumide pinnakatted",null,null,null,{"$f":"SUM(G149:G151)","v":0}]
[null,null,null,null,null,null,{"$f":"ROUND(SUM(E149*F149),2)","v":0}]
[null,null,null,null,null,null,{"$f":"ROUND(SUM(E150*F150),2)","v":0}]
[null,null,null,null,null,null,{"$f":"ROUND(SUM(E151*F151),2)","v":0},null,null,null,null,null,null,null,null,null,null,null,null,null,null,null,null,null,{"$f":"C152","v":"TEHNOSÜSTEEMID "},null,{"$f":"G152","v":0}]
[null,6,"TEHNOSÜSTEEMID ",null,null,null,{"$f":"SUM(G153,G157,G161,G165,G169)","v":0},null,null,null,null,null,null,null,null,null,null,null,null,null,null,null,null,null,{"$f":"C153","v":"Veevarustus ja kanalisatsioon"},null,{"$f":"G153","v":0}]
[null,61,"Veevarustus ja kanalisatsioon",null,null,null,{"$f":"SUM(G154:G156)","v":0}]
[null,null,null,null,null,null,{"$f":"ROUND(SUM(E154*F154),2)","v":0}]
[null,null,null,null,null,null,{"$f":"ROUND(SUM(E155*F155),2)","v":0}]
[null,null,null,null,null,null,{"$f":"ROUND(SUM(E156*F156),2)","v":0},null,null,null,null,null,null,null,null,null,null,null,null,null,null,null,null,null,{"$f":"C157","v":"Küte, ventilatsioon ja jahutus"},null,{"$f":"G157","v":0}]
[null,62,"Küte, ventilatsioon ja jahutus",null,null,null,{"$f":"SUM(G158:G160)","v":0}]
[null,null,null,null,null,null,{"$f":"ROUND(SUM(E158*F158),2)","v":0}]
[null,null,null,null,null,null,{"$f":"ROUND(SUM(E159*F159),2)","v":0}]
[null,null,null,null,null,null,{"$f":"ROUND(SUM(E160*F160),2)","v":0},null,null,null,null,null,null,null,null,null,null,null,null,null,null,null,null,null,{"$f":"C161","v":"Tuletõrjevarustus"},null,{"$f":"G161","v":0}]
[null,63,"Tuletõrjevarustus",null,null,null,{"$f":"SUM(G162:G164)","v":0}]
[null,null,null,null,null,null,{"$f":"ROUND(SUM(E162*F162),2)","v":0}]
[null,null,null,null,null,null,{"$f":"ROUND(SUM(E163*F163),2)","v":0}]
[null,null,null,null,null,null,{"$f":"ROUND(SUM(E164*F164),2)","v":0},null,null,null,null,null,null,null,null,null,null,null,null,null,null,null,null,null,{"$f":"C165","v":"Tugevvoolupaigaldis"},null,{"$f":"G165","v":0}]
[null,64,"Tugevvoolupaigaldis",null,null,null,{"$f":"SUM(G166:G168)","v":0}]
[null,null,null,null,null,null,{"$f":"ROUND(SUM(E166*F166),2)","v":0}]
[null,null,null,null,null,null,{"$f":"ROUND(SUM(E167*F167),2)","v":0}]
[null,null,null,null,null,null,{"$f":"ROUND(SUM(E168*F168),2)","v":0},null,null,null,null,null,null,null,null,null,null,null,null,null,null,null,null,null,{"$f":"#REF!","v":{"$error":"#REF!"}},null,{"$f":"#REF!","v":{"$error":"#REF!"}}]
[null,65,"Nõrkvoolupaigaldis ja automaatika",null,null,null,{"$f":"SUM(G170:G172)","v":0}]
[null,null,null,null,null,null,{"$f":"ROUND(SUM(E170*F170),2)","v":0}]
[null,null,null,null,null,null,{"$f":"ROUND(SUM(E171*F171),2)","v":0}]
[null,null,null,null,null,null,{"$f":"ROUND(SUM(E172*F172),2)","v":0}]
[null,7,"EHITUSPLATSI KORRALDUSKULUD ",null,null,null,{"$f":"SUM(G174,G178,G182,G186,G190,G194,G198)","v":0},null,null,null,null,null,null,null,null,null,null,null,null,null,null,null,null,null,{"$f":"C174","v":"Ajutised ehitised ehitusplatsil"},null,{"$f":"G174","v":0}]
[null,71,"Ajutised ehitised ehitusplatsil",null,null,null,{"$f":"SUM(G175:G177)","v":0}]
[null,null,null,null,null,null,{"$f":"ROUND(SUM(E175*F175),2)","v":0}]
[null,null,null,null,null,null,{"$f":"ROUND(SUM(E176*F176),2)","v":0}]
[null,null,null,null,null,null,{"$f":"ROUND(SUM(E177*F177),2)","v":0},null,null,null,null,null,null,null,null,null,null,null,null,null,null,null,null,null,{"$f":"C178","v":"Ajutised tehnosüsteemid"},null,{"$f":"G178","v":0}]
[null,72,"Ajutised tehnosüsteemid",null,null,null,{"$f":"SUM(G179:G181)","v":0}]
[null,null,null,null,null,null,{"$f":"ROUND(SUM(E179*F179),2)","v":0}]
[null,null,null,null,null,null,{"$f":"ROUND(SUM(E180*F180),2)","v":0}]
[null,null,null,null,null,null,{"$f":"ROUND(SUM(E181*F181),2)","v":0},null,null,null,null,null,null,null,null,null,null,null,null,null,null,null,null,null,{"$f":"C182","v":"Masinad ja seadmed"},null,{"$f":"G182","v":0}]
[null,73,"Masinad ja seadmed",null,null,null,{"$f":"SUM(G183:G185)","v":0}]
[null,null,null,null,null,null,{"$f":"ROUND(SUM(E183*F183),2)","v":0}]
[null,null,null,null,null,null,{"$f":"ROUND(SUM(E184*F184),2)","v":0}]
[null,null,null,null,null,null,{"$f":"ROUND(SUM(E185*F185),2)","v":0},null,null,null,null,null,null,null,null,null,null,null,null,null,null,null,null,null,{"$f":"C186","v":"Tööriistad ja instrumendid"},null,{"$f":"G186","v":0}]
[null,74,"Tööriistad ja instrumendid",null,null,null,{"$f":"SUM(G187:G189)","v":0}]
[null,null,null,null,null,null,{"$f":"ROUND(SUM(E187*F187),2)","v":0}]
[null,null,null,null,null,null,{"$f":"ROUND(SUM(E188*F188),2)","v":0}]
[null,null,null,null,null,null,{"$f":"ROUND(SUM(E189*F189),2)","v":0},null,null,null,null,null,null,null,null,null,null,null,null,null,null,null,null,null,{"$f":"C190","v":"Abimaterjalid"},null,{"$f":"G190","v":0}]
[null,75,"Abimaterjalid",null,null,null,{"$f":"SUM(G191:G193)","v":0}]
[null,null,null,null,null,null,{"$f":"ROUND(SUM(E191*F191),2)","v":0}]
[null,null,null,null,null,null,{"$f":"ROUND(SUM(E192*F192),2)","v":0}]
[null,null,null,null,null,null,{"$f":"ROUND(SUM(E193*F193),2)","v":0},null,null,null,null,null,null,null,null,null,null,null,null,null,null,null,null,null,{"$f":"C194","v":"Energiakulu"},null,{"$f":"G194","v":0}]
[null,76,"Energiakulu",null,null,null,{"$f":"SUM(G195:G197)","v":0}]
[null,null,null,null,null,null,{"$f":"ROUND(SUM(E195*F195),2)","v":0}]
[null,null,null,null,null,null,{"$f":"ROUND(SUM(E196*F196),2)","v":0}]
[null,null,null,null,null,null,{"$f":"SUM(E197*F197)","v":0},null,null,null,null,null,null,null,null,null,null,null,null,null,null,null,null,null,{"$f":"C198","v":"Veod"},null,{"$f":"G198","v":0}]
[null,77,"Veod",null,null,null,{"$f":"SUM(G199:G201)","v":0}]
[null,null,null,null,null,null,{"$f":"ROUND(SUM(E199*F199),2)","v":0}]
[null,null,null,null,null,null,{"$f":"ROUND(SUM(E200*F200),2)","v":0}]
[null,null,null,null,null,null,{"$f":"ROUND(SUM(E201*F201),2)","v":0},null,null,null,null,null,null,null,null,null,null,null,null,null,null,null,null,null,{"$f":"C202","v":"EHITUSPLATSI ÜLDKULUD "},null,{"$f":"G202","v":0}]
[null,8,"EHITUSPLATSI ÜLDKULUD ",null,null,null,{"$f":"SUM(G203,G207,G211,G215,G219)","v":0},null,null,null,null,null,null,null,null,null,null,null,null,null,null,null,null,null,{"$f":"C203","v":"Juhtimiskulud"},null,{"$f":"G203","v":0}]
[null,81,"Juhtimiskulud",null,null,null,{"$f":"SUM(G204:G206)","v":0}]
[null,null,null,null,null,null,{"$f":"ROUND(SUM(E204*F204),2)","v":0}]
[null,null,null,null,null,null,{"$f":"ROUND(SUM(E205*F205),2)","v":0}]
[null,null,null,null,null,null,{"$f":"ROUND(SUM(E206*F206),2)","v":0},null,null,null,null,null,null,null,null,null,null,null,null,null,null,null,null,null,{"$f":"C207","v":"Kulud abistavatele tegevustele"},null,{"$f":"G207","v":0}]
[null,82,"Kulud abistavatele tegevustele",null,null,null,{"$f":"SUM(G208:G210)","v":0}]
[null,null,null,null,null,null,{"$f":"ROUND(SUM(E208*F208),2)","v":0}]
[null,null,null,null,null,null,{"$f":"ROUND(SUM(E209*F209),2)","v":0}]
[null,null,null,null,null,null,{"$f":"ROUND(SUM(E210*F210),2)","v":0},null,null,null,null,null,null,null,null,null,null,null,null,null,null,null,null,null,{"$f":"C211","v":"Erikulud seoses tegevusega välisriikides"},null,{"$f":"G211","v":0}]
[null,83,"Erikulud seoses tegevusega välisriikides",null,null,null,{"$f":"SUM(G212:G214)","v":0}]
[null,null,null,null,null,null,{"$f":"ROUND(SUM(E212*F212),2)","v":0}]
[null,null,null,null,null,null,{"$f":"ROUND(SUM(E213*F213),2)","v":0}]
[null,null,null,null,null,null,{"$f":"ROUND(SUM(E214*F214),2)","v":0},null,null,null,null,null,null,null,null,null,null,null,null,null,null,null,null,null,{"$f":"C215","v":"Talvised lisakulud"},null,{"$f":"G215","v":0}]
[null,84,"Talvised lisakulud",null,null,null,{"$f":"SUM(G216:G218)","v":0}]
[null,null,null,null,null,null,{"$f":"ROUND(SUM(E216*F216),2)","v":0}]
[null,null,null,null,null,null,{"$f":"ROUND(SUM(E217*F217),2)","v":0}]
[null,null,null,null,null,null,{"$f":"ROUND(SUM(E218*F218),2)","v":0},null,null,null,null,null,null,null,null,null,null,null,null,null,null,null,null,null,{"$f":"C219","v":"Lepingu erikulud"},null,{"$f":"G219","v":0}]
[null,85,"Lepingu erikulud",null,null,null,{"$f":"SUM(G220:G222)","v":0}]
[null,null,null,null,null,null,{"$f":"ROUND(SUM(E220*F220),2)","v":0}]
[null,null,null,null,null,null,{"$f":"ROUND(SUM(E221*F221),2)","v":0}]
[null,null,null,null,null,null,{"$f":"ROUND(SUM(E222*F222),2)","v":0}]

{"sheet":"meny","index":1,"n_rows":301,"n_cols":22,"rows_kept":301,"cut":false,"hidden":true,"merged":[[27,6,27,7],[28,6,28,7],[29,6,29,7],[21,6,21,7],[22,6,22,7],[23,6,23,7],[24,6,24,7],[25,6,25,7],[26,6,26,7]]}
[1,"Ehitise püstitamine",null,null,"Vundamendi liik",null,"Kande- ja jäigastavate konstruktsioonide materjali liik",null,"Katuste ja katuselagede kandva osa materjali liik",null,"Vahelagede kandva osa materjali liik",null,"Välisseina liik",null,"Katusekatte materjal",null,"Välisseina välisviimistluse materjali liik",null,"Teekate",null,1,"11000 ELAMUD"]
[2,"Ehitise laiendamine",null,1,"Puudub",1,"Puudub",1,"Puudub",1,"Puudub",1,"Puudub",1,"Puudub",1,"Puudub",1,"Raudbetoon",null,2,"11100 Ühe korteriga elamud"]
[3,"Osa asendamine samaväärsega",null,2,"Madalvundament",2,"Metall",2,"Profiilplekk",2,"Profiilplekk",2,"Vahetäitega sõrestik",2,"Plaatmaterjal, sealhulgas tsementkiudplaat",2,"Krohv",2,"(kerg)asfaltbetoon",null,3,"11101 Üksikelamu "]
[4,"Ehitise ümberehitamine (rekonstrueerimine)",null,3,"Vaivundament",3,"Looduslik kivi",3,"Terasferm või -tala",3,"Terasferm või -tala",3,"Plekk",3,"Katusekivi",3,"Looduslik kivi",3,"Kiviparkett",null,4,"11102 Ridaelamu või kaksikelamu sektsioon (juhul kui on oma katus ja sissepääs maapinnalt)"]
[5,"Ehitise lammutamine",null,4,"Muu vundament",4,"Tellis",4,"Monoliitne raudbetoon",4,"Monoliitne raudbetoon",4,"Looduslik kivi",4,"Plekk",4,"Keraamiline tellis",4,"Pinnatud mustsegu",null,5,"11103 Suvila, aiamaja "]
[6,null,null,5,"   ",5,"Monoliitne raudbetoon",5,"Monteeritav raudbetoon",5,"Monteeritav raudbetoon",5,"Tellis",5,"Puit või laast",5,"Betoon",5,"Munakivisillutis",null,6,"11200 Kahe või mitme korteriga elamud"]
[null,null,null,null,null,6,"Monteeritav raudbetoon",6,"Puit",6,"Puit",6,"Betoon",6,"Roog või põhk",6,"Fassaadiplaat, sealhulgas tsementkiudplaat",6,"Killusti-kruus",null,7,"11210 Kahe korteriga elamud"]
[null,null,null,null,null,7,"Plastmass",7,"Muu materjal",7,"Muu materjal",7,"Tsementkiudplaat",7,"Bituumen või PVC plaat või rullmaterjal",7,"Väike- või suurplokk, näiteks vaht, mull, kergkruus, kärg, betoon",7,"sideainetega töödeldud pinnastee",null,8,"11212 Kahe korteriga elamu "]
[null,null,null,null,null,8,"Väik- või suurplokk, näiteks vaht, mull, kergkruus, kärg, betoon",8,"   ",8,"   ",8,"Palk",8,null,8,"Klaas",8,"  ",null,9,"11220 Kolme või enama korteriga elamud"]
[null,null,null,null,null,9,"Puit",null,null,null,null,9,"Laudis",null,null,9,"Metall, sealhulgas plekk või profiilplekk",null,null,null,10,"11221 Ridaelamu "]
[null,null,null,null,null,10,"Muu materjal",null,null,null,null,10,"Mitmekihiline raudbetoonpaneel",null,null,10,"Puit, voodrina",null,null,null,11,"11222 Muu kolme või enama korteriga elamu "]
[null,null,null,null,null,11,"   ",null,null,null,null,11,"Mitmekihiline teraspaneel",null,null,11,"Puit, palgina",null,null,null,12,"11300 Hoolekandeasutuste ja ühiselamute hooned"]
[null,null,null,null,null,null,null,null,null,null,null,12,"Väike- või suurplokk, näiteks vaht, mull, kergkruus, kärg, betoon",null,null,12,"Muu materjal",null,null,null,13,"11310 Hoolekandeasutuste hooned"]
[null,null,null,null,null,null,null,null,null,null,null,13,"Plastmass",null,null,13,"  ",null,null,null,14,"11311 Päevakeskus "]
[null,null,null,null,null,null,null,null,null,null,null,14,"Klaas",null,null,null,null,null,null,null,15,"11312 Tugikodu "]
[null,null,null,null,null,null,null,null,null,null,null,15,"Muu materjal",null,null,null,null,null,null,null,16,"11313 Varjupaik "]
[null,null,null,null,null,null,null,null,null,null,null,16,"   ",null,null,null,null,null,null,null,17,"11314 Lastekodu "]
[null,null,null,null,null,null,null,null,null,null,null,null,null,null,null,null,null,null,null,null,18,"11315 Noortekodu "]
[null,null,null,null,null,null,null,null,null,null,null,null,null,null,null,null,null,null,null,null,19,"11316 Üldhooldekodu "]
[null,null,null,null,null,null,null,null,null,null,null,null,null,null,null,null,null,null,null,null,20,"11317 Koolkodu "]
[null,null,null,null,null,null,null,null,null,null,null,null,null,null,null,null,null,null,null,null,21,"11318 Sotsiaalse rehabilitatsiooni keskus "]
[null,null,null,null,null,null,null,null,null,null,null,null,null,null,null,null,null,null,null,null,22,"11319 Erihooldekodu "]
[null,null,null,null,null,null,null,null,null,null,null,null,null,null,null,null,null,null,null,null,23,"11320 Ühiselamud"]
[null,null,null,null,null,null,null,null,null,null,null,null,null,null,null,null,null,null,null,null,24,"11321 Ühiselamu üliõpilastele või õpilastele "]
[null,null,null,null,null,null,null,null,null,null,null,null,null,null,null,null,null,null,null,null,25,"11322 Ühiselamu teistele sotsiaalsetele gruppidele "]
[null,null,null,null,null,null,null,null,null,null,null,null,null,null,null,null,null,null,null,null,26,"12000 MITTEELAMUD"]
[null,null,null,null,null,null,null,null,null,null,null,null,null,null,null,null,null,null,null,null,27,"12100 Majutus- ja toitlustushooned "]
[null,null,null,null,null,null,null,null,null,null,null,null,null,null,null,null,null,null,null,null,28,"12110 Majutushooned "]
[null,null,null,null,null,null,null,null,null,null,null,null,null,null,null,null,null,null,null,null,29,"12111 Hotell, motell, külalistemaja "]
[null,null,null,null,null,null,null,null,null,null,null,null,null,null,null,null,null,null,null,null,30,"12121 Puhkeküla või puhkelaagri majutushoone "]
[null,null,null,null,null,null,null,null,null,null,null,null,null,null,null,null,null,null,null,null,31,"12123 Hostel"]
[null,null,null,null,null,null,null,null,null,null,null,null,null,null,null,null,null,null,null,null,32,"12129 Muu lühiajalise majutuse hoone "]
[null,null,null,null,null,null,null,null,null,null,null,null,null,null,null,null,null,null,null,null,33,"12130 Toitlustushooned"]
[null,null,null,null,null,null,null,null,null,null,null,null,null,null,null,null,null,null,null,null,34,"12131 Restoran "]
[null,null,null,null,null,null,null,null,null,null,null,null,null,null,null,null,null,null,null,null,35,"12132 Kohvik, baar või söökla "]
[null,null,null,null,null,null,null,null,null,null,null,null,null,null,null,null,null,null,null,null,36,"12139 Muu toitlustushoone12200 Büroohooned"]
[null,null,null,null,null,null,null,null,null,null,null,null,null,null,null,null,null,null,null,null,37,"12201 Büroohoone "]
[null,null,null,null,null,null,null,null,null,null,null,null,null,null,null,null,null,null,null,null,38,"12300 Kaubandus- ja teenindushooned"]
[null,null,null,null,null,null,null,null,null,null,null,null,null,null,null,null,null,null,null,null,39,"12310 Kaubandushooned"]
[null,null,null,null,null,null,null,null,null,null,null,null,null,null,null,null,null,null,null,null,40,"12311 Kaubandushoone "]
[null,null,null,null,null,null,null,null,null,null,null,null,null,null,null,null,null,null,null,null,41,"12314 Kiosk "]
[null,null,null,null,null,null,null,null,null,null,null,null,null,null,null,null,null,null,null,null,42,"12317 Oksjoni-, turu- või näitusehall "]
[null,null,null,null,null,null,null,null,null,null,null,null,null,null,null,null,null,null,null,null,43,"12319 Muu kaubandushoone "]
[null,null,null,null,null,null,null,null,null,null,null,null,null,null,null,null,null,null,null,null,44,"12330 Teenindushoone"]
[null,null,null,null,null,null,null,null,null,null,null,null,null,null,null,null,null,null,null,null,45,"12331 Ilu- ja isikuteenuste hoone "]
[null,null,null,null,null,null,null,null,null,null,null,null,null,null,null,null,null,null,null,null,46,"12332 Sõidukite teeninduse hoone "]
[null,null,null,null,null,null,null,null,null,null,null,null,null,null,null,null,null,null,null,null,47,"12339 Muu teenindushoone "]
[null,null,null,null,null,null,null,null,null,null,null,null,null,null,null,null,null,null,null,null,48,"12400 Transpordihooned"]
[null,null,null,null,null,null,null,null,null,null,null,null,null,null,null,null,null,null,null,null,49,"12410 Terminalid "]
[null,null,null,null,null,null,null,null,null,null,null,null,null,null,null,null,null,null,null,null,50,"12411 Lennujaama hoone "]
[null,null,null,null,null,null,null,null,null,null,null,null,null,null,null,null,null,null,null,null,51,"12413 Raudteejaama hoone "]
[null,null,null,null,null,null,null,null,null,null,null,null,null,null,null,null,null,null,null,null,52,"12415 Bussijaama hoone "]
[null,null,null,null,null,null,null,null,null,null,null,null,null,null,null,null,null,null,null,null,53,"12416 Sadamahoone "]
[null,null,null,null,null,null,null,null,null,null,null,null,null,null,null,null,null,null,null,null,54,"12419 Muu terminalihoone"]
[null,null,null,null,null,null,null,null,null,null,null,null,null,null,null,null,null,null,null,null,55,"12430 Garaažid"]
[null,null,null,null,null,null,null,null,null,null,null,null,null,null,null,null,null,null,null,null,56,"12431 Garaaž "]
[null,null,null,null,null,null,null,null,null,null,null,null,null,null,null,null,null,null,null,null,57,"12432 Parkimismaja "]
[null,null,null,null,null,null,null,null,null,null,null,null,null,null,null,null,null,null,null,null,58,"12439 Muu garaaž "]
[null,null,null,null,null,null,null,null,null,null,null,null,null,null,null,null,null,null,null,null,59,"12500 Tööstus- ja laohooned"]
[null,null,null,null,null,null,null,null,null,null,null,null,null,null,null,null,null,null,null,null,60,"12510 Tööstushooned"]
[null,null,null,null,null,null,null,null,null,null,null,null,null,null,null,null,null,null,null,null,61,"12511 Maavarade kaevandamise ja töötlemise hoone "]
[null,null,null,null,null,null,null,null,null,null,null,null,null,null,null,null,null,null,null,null,62,"12512 Energeetikatööstuse hoone "]
[null,null,null,null,null,null,null,null,null,null,null,null,null,null,null,null,null,null,null,null,63,"12513 Keemiatööstuse hoone "]
[null,null,null,null,null,null,null,null,null,null,null,null,null,null,null,null,null,null,null,null,64,"12514 Toiduainetetööstuse hoone "]
[null,null,null,null,null,null,null,null,null,null,null,null,null,null,null,null,null,null,null,null,65,"12515 Ehitusmaterjalide ja -toodete tööstuse hoone "]
[null,null,null,null,null,null,null,null,null,null,null,null,null,null,null,null,null,null,null,null,66,"12516 Kergetööstuse hoone "]
[null,null,null,null,null,null,null,null,null,null,null,null,null,null,null,null,null,null,null,null,67,"12517 Puidutööstuse hoone "]
[null,null,null,null,null,null,null,null,null,null,null,null,null,null,null,null,null,null,null,null,68,"12518 Masina- ja seadmetööstuse hoone "]
[null,null,null,null,null,null,null,null,null,null,null,null,null,null,null,null,null,null,null,null,69,"12519 Muu tööstushoone "]
[null,null,null,null,null,null,null,null,null,null,null,null,null,null,null,null,null,null,null,null,70,"12520 Hoidlad ja laohooned"]
[null,null,null,null,null,null,null,null,null,null,null,null,null,null,null,null,null,null,null,null,71,"12521 Toiduainete laohoone "]
[null,null,null,null,null,null,null,null,null,null,null,null,null,null,null,null,null,null,null,null,72,"12523 Vedelkütuse-, küttegaasi- jm terminali hoidlahoone"]
[null,null,null,null,null,null,null,null,null,null,null,null,null,null,null,null,null,null,null,null,73,"12525 Külmhoone "]
[null,null,null,null,null,null,null,null,null,null,null,null,null,null,null,null,null,null,null,null,74,"12529 Muu laohoone "]
[null,null,null,null,null,null,null,null,null,null,null,null,null,null,null,null,null,null,null,null,75,"12600 Meelelahutus-, haridus- tervishoiu- ja muud avalikud hooned"]
[null,null,null,null,null,null,null,null,null,null,null,null,null,null,null,null,null,null,null,null,76,"12610 Meelelahutushooned"]
[null,null,null,null,null,null,null,null,null,null,null,null,null,null,null,null,null,null,null,null,77,"12611 Teater, kino, kontserdi- ja universaalsaalide hoone "]
[null,null,null,null,null,null,null,null,null,null,null,null,null,null,null,null,null,null,null,null,78,"12615 Klubi, rahvamaja "]
[null,null,null,null,null,null,null,null,null,null,null,null,null,null,null,null,null,null,null,null,79,"12616 Tantsusaal, diskoteek, ööklubi"]
[null,null,null,null,null,null,null,null,null,null,null,null,null,null,null,null,null,null,null,null,80,"12617 Kasiino"]
[null,null,null,null,null,null,null,null,null,null,null,null,null,null,null,null,null,null,null,null,81,"12618 Loomaaia või botaanikaaia hoone"]
[null,null,null,null,null,null,null,null,null,null,null,null,null,null,null,null,null,null,null,null,82,"12619 Muu meelelahutushoone"]
[null,null,null,null,null,null,null,null,null,null,null,null,null,null,null,null,null,null,null,null,83,"12620 Muuseumi- ja raamatukoguhooned"]
[null,null,null,null,null,null,null,null,null,null,null,null,null,null,null,null,null,null,null,null,84,"12621 Muuseum, kunstigalerii "]
[null,null,null,null,null,null,null,null,null,null,null,null,null,null,null,null,null,null,null,null,85,"12623 Raamatukogu "]
[null,null,null,null,null,null,null,null,null,null,null,null,null,null,null,null,null,null,null,null,86,"12624 Arhiiv "]
[null,null,null,null,null,null,null,null,null,null,null,null,null,null,null,null,null,null,null,null,87,"12630 Haridus- ja teadushooned"]
[null,null,null,null,null,null,null,null,null,null,null,null,null,null,null,null,null,null,null,null,88,"12631 Koolieelne lasteasutus (lastesõim, -aed, päevakodu, lasteaed-algkool) "]
[null,null,null,null,null,null,null,null,null,null,null,null,null,null,null,null,null,null,null,null,89,"12632 Põhikooli või gümnaasiumi õppehoone "]
[null,null,null,null,null,null,null,null,null,null,null,null,null,null,null,null,null,null,null,null,90,"12633 Kutseõppeasutuse õppehoone "]
[null,null,null,null,null,null,null,null,null,null,null,null,null,null,null,null,null,null,null,null,91,"12634 Ülikooli, rakenduskõrgkooli õppehoone "]
[null,null,null,null,null,null,null,null,null,null,null,null,null,null,null,null,null,null,null,null,92,"12635 Teadus- ja metoodikaasutuse hoone "]
[null,null,null,null,null,null,null,null,null,null,null,null,null,null,null,null,null,null,null,null,93,"12639 Muu haridus- või teadushoone"]
[null,null,null,null,null,null,null,null,null,null,null,null,null,null,null,null,null,null,null,null,94,"12640 Haiglad ja muud ravihooned"]
[null,null,null,null,null,null,null,null,null,null,null,null,null,null,null,null,null,null,null,null,95,"12641 Haigla "]
[null,null,null,null,null,null,null,null,null,null,null,null,null,null,null,null,null,null,null,null,96,"12643 Kinnipidamiskoha haigla "]
[null,null,null,null,null,null,null,null,null,null,null,null,null,null,null,null,null,null,null,null,97,"12644 Ambulatoorse arstiabi osutamise hoone "]
[null,null,null,null,null,null,null,null,null,null,null,null,null,null,null,null,null,null,null,null,98,"12645 Sanatoorium, spaa"]
[null,null,null,null,null,null,null,null,null,null,null,null,null,null,null,null,null,null,null,null,99,"12646 Veterinaarkliinik"]
[null,null,null,null,null,null,null,null,null,null,null,null,null,null,null,null,null,null,null,null,100,"12649 Muu tervishoiuhoone"]
[null,null,null,null,null,null,null,null,null,null,null,null,null,null,null,null,null,null,null,null,101,"12650 Spordihooned"]
[null,null,null,null,null,null,null,null,null,null,null,null,null,null,null,null,null,null,null,null,102,"12651 Spordihall, võimla "]
[null,null,null,null,null,null,null,null,null,null,null,null,null,null,null,null,null,null,null,null,103,"12653 Siseujula "]
[null,null,null,null,null,null,null,null,null,null,null,null,null,null,null,null,null,null,null,null,104,"12654 Jäähall "]
[null,null,null,null,null,null,null,null,null,null,null,null,null,null,null,null,null,null,null,null,105,"12655 Maneež "]
[null,null,null,null,null,null,null,null,null,null,null,null,null,null,null,null,null,null,null,null,106,"12656 Lasketiiru hoone "]
[null,null,null,null,null,null,null,null,null,null,null,null,null,null,null,null,null,null,null,null,107,"12659 Muu spordihoone "]
[null,null,null,null,null,null,null,null,null,null,null,null,null,null,null,null,null,null,null,null,108,"12700 Muud mitteelamud"]
[null,null,null,null,null,null,null,null,null,null,null,null,null,null,null,null,null,null,null,null,109,"12710 Põllumajanduse, metsa-, jahi- ja kalamajandushooned"]
[null,null,null,null,null,null,null,null,null,null,null,null,null,null,null,null,null,null,null,null,110,"12711 Loomakasvatushoone, sealhulgas karuslooma- või linnukasvatus "]
[null,null,null,null,null,null,null,null,null,null,null,null,null,null,null,null,null,null,null,null,111,"12714 Teraviljakuivati "]
[null,null,null,null,null,null,null,null,null,null,null,null,null,null,null,null,null,null,null,null,112,"12715 Loomasööda hoidla"]
[null,null,null,null,null,null,null,null,null,null,null,null,null,null,null,null,null,null,null,null,113,"12718 Mineraalväetiste või taimekaitsevahendite hoidla "]
[null,null,null,null,null,null,null,null,null,null,null,null,null,null,null,null,null,null,null,null,114,"12719 Muu põllu-, metsa-, jahi- või kalamajandushoone "]
[null,null,null,null,null,null,null,null,null,null,null,null,null,null,null,null,null,null,null,null,115,"12720 Kultus- ja tavandihooned"]
[null,null,null,null,null,null,null,null,null,null,null,null,null,null,null,null,null,null,null,null,116,"12721 Kirik, katedraal, mošee, sünagoog, palvemaja või kabel"]
[null,null,null,null,null,null,null,null,null,null,null,null,null,null,null,null,null,null,null,null,117,"12723 Krematoorium "]
[null,null,null,null,null,null,null,null,null,null,null,null,null,null,null,null,null,null,null,null,118,"12730 Ajaloolised või kaitse all olevad hooned"]
[null,null,null,null,null,null,null,null,null,null,null,null,null,null,null,null,null,null,null,null,119,"12731 Ajalooline või kaitse all olev hoone"]
[null,null,null,null,null,null,null,null,null,null,null,null,null,null,null,null,null,null,null,null,120,"12732 Muinsuskaitse all olev vare"]
[null,null,null,null,null,null,null,null,null,null,null,null,null,null,null,null,null,null,null,null,121,"12740 Erihooned"]
[null,null,null,null,null,null,null,null,null,null,null,null,null,null,null,null,null,null,null,null,122,"12741 Reoveepuhasti hoone"]
[null,null,null,null,null,null,null,null,null,null,null,null,null,null,null,null,null,null,null,null,123,"12742 Karistusasutuse hoone"]
[null,null,null,null,null,null,null,null,null,null,null,null,null,null,null,null,null,null,null,null,124,"12743 Päästeteenistuse hoone "]
[null,null,null,null,null,null,null,null,null,null,null,null,null,null,null,null,null,null,null,null,125,"12744 Elamu, kooli vms abihoone"]
[null,null,null,null,null,null,null,null,null,null,null,null,null,null,null,null,null,null,null,null,126,"12745 Katlamaja, boilerjaam "]
[null,null,null,null,null,null,null,null,null,null,null,null,null,null,null,null,null,null,null,null,127,"12746 Kaevumaja "]
[null,null,null,null,null,null,null,null,null,null,null,null,null,null,null,null,null,null,null,null,128,"12747 Veepuhastusjaama hoone"]
[null,null,null,null,null,null,null,null,null,null,null,null,null,null,null,null,null,null,null,null,129,"12748 Jäätmekäitluse hoone "]
[null,null,null,null,null,null,null,null,null,null,null,null,null,null,null,null,null,null,null,null,130,"12749 Muu erihoone "]
[null,null,null,null,null,null,null,null,null,null,null,null,null,null,null,null,null,null,null,null,131,"21000 TRANSPORDIRAJATISED21100 Teed"]
[null,null,null,null,null,null,null,null,null,null,null,null,null,null,null,null,null,null,null,null,132,"21110 Maanteed"]
[null,null,null,null,null,null,null,null,null,null,null,null,null,null,null,null,null,null,null,null,133,"21120 Tänavad"]
[null,null,null,null,null,null,null,null,null,null,null,null,null,null,null,null,null,null,null,null,134,"21200 Raudteerajatised"]
[null,null,null,null,null,null,null,null,null,null,null,null,null,null,null,null,null,null,null,null,135,"21210 Raudtee"]
[null,null,null,null,null,null,null,null,null,null,null,null,null,null,null,null,null,null,null,null,136,"21211 Raudtee "]
[null,null,null,null,null,null,null,null,null,null,null,null,null,null,null,null,null,null,null,null,137,"21212 Jaamateed "]
[null,null,null,null,null,null,null,null,null,null,null,null,null,null,null,null,null,null,null,null,138,"21213 Meldepunkti rajatis "]
[null,null,null,null,null,null,null,null,null,null,null,null,null,null,null,null,null,null,null,null,139,"21214 Reisi- või kaubaplatvorm "]
[null,null,null,null,null,null,null,null,null,null,null,null,null,null,null,null,null,null,null,null,140,"21215 Ülekäigu- ja ülesõidukoht "]
[null,null,null,null,null,null,null,null,null,null,null,null,null,null,null,null,null,null,null,null,141,"21216 Raudtee ohutus-, signalisatsiooni-, turva-, side-, valgustus- või energiarajatis või tehnorajatis "]
[null,null,null,null,null,null,null,null,null,null,null,null,null,null,null,null,null,null,null,null,142,"21217 Raudtee kaitserajatis "]
[null,null,null,null,null,null,null,null,null,null,null,null,null,null,null,null,null,null,null,null,143,"21219 Muu raudtee sihtotstarbeliseks kasutamiseks vajalik rajatis "]
[null,null,null,null,null,null,null,null,null,null,null,null,null,null,null,null,null,null,null,null,144,"21220 Linnaraudtee"]
[null,null,null,null,null,null,null,null,null,null,null,null,null,null,null,null,null,null,null,null,145,"21221 Trammitee "]
[null,null,null,null,null,null,null,null,null,null,null,null,null,null,null,null,null,null,null,null,146,"21222 Linnaraudtee jaamatee "]
[null,null,null,null,null,null,null,null,null,null,null,null,null,null,null,null,null,null,null,null,147,"21224 Linnaraudtee reisijateplatvorm "]
[null,null,null,null,null,null,null,null,null,null,null,null,null,null,null,null,null,null,null,null,148,"21225 Linnaraudtee ülekäigu- ja ülesõidukoht "]
[null,null,null,null,null,null,null,null,null,null,null,null,null,null,null,null,null,null,null,null,149,"21226 Linnaraudtee ohutus-, signalisatsiooni-, turva-, side-, valgustus-, energia- või muu tehnorajatis "]
[null,null,null,null,null,null,null,null,null,null,null,null,null,null,null,null,null,null,null,null,150,"21229 Muu linnaraudtee sihtotstarbeliseks kasutamiseks vajalik rajatis "]
[null,null,null,null,null,null,null,null,null,null,null,null,null,null,null,null,null,null,null,null,151,"21300 Õhutranspordirajatised"]
[null,null,null,null,null,null,null,null,null,null,null,null,null,null,null,null,null,null,null,null,152,"21310 Lennuväljad"]
[null,null,null,null,null,null,null,null,null,null,null,null,null,null,null,null,null,null,null,null,153,"21311 Lennuvälja stardi- ja maandumisrada "]
[null,null,null,null,null,null,null,null,null,null,null,null,null,null,null,null,null,null,null,null,154,"21312 Lennuvälja teenindustee "]
[null,null,null,null,null,null,null,null,null,null,null,null,null,null,null,null,null,null,null,null,155,"21313 Aeronavigatsiooniline rajatis "]
[null,null,null,null,null,null,null,null,null,null,null,null,null,null,null,null,null,null,null,null,156,"21314 Lennuvälja ohutus-, signalisatsiooni-, turva-, side-, valgustus-, energia- või tehnorajatis "]
[null,null,null,null,null,null,null,null,null,null,null,null,null,null,null,null,null,null,null,null,157,"21319 Muu lennuväljarajatis "]
[null,null,null,null,null,null,null,null,null,null,null,null,null,null,null,null,null,null,null,null,158,"21400 Sillad, estakaadid, tunnelid"]
[null,null,null,null,null,null,null,null,null,null,null,null,null,null,null,null,null,null,null,null,159,"21410 Sillad ja estakaadid"]
[null,null,null,null,null,null,null,null,null,null,null,null,null,null,null,null,null,null,null,null,160,"21420 Tunnelid"]
[null,null,null,null,null,null,null,null,null,null,null,null,null,null,null,null,null,null,null,null,161,"21500 Veetranspordirajatised"]
[null,null,null,null,null,null,null,null,null,null,null,null,null,null,null,null,null,null,null,null,162,"21510 Sadamarajatised ja kanalid"]
[null,null,null,null,null,null,null,null,null,null,null,null,null,null,null,null,null,null,null,null,163,"21511 Sadama kai "]
[null,null,null,null,null,null,null,null,null,null,null,null,null,null,null,null,null,null,null,null,164,"21512 Kalda- või ujuvramp, ujuvkai, slipp"]
[null,null,null,null,null,null,null,null,null,null,null,null,null,null,null,null,null,null,null,null,165,"21513 Lainemurdja, muul "]
[null,null,null,null,null,null,null,null,null,null,null,null,null,null,null,null,null,null,null,null,166,"21514 Navigatsioonimärk, v.a majakas "]
[null,null,null,null,null,null,null,null,null,null,null,null,null,null,null,null,null,null,null,null,167,"21515 Sadama juurde kuuluv galerii (reisijatele, kaubale) "]
[null,null,null,null,null,null,null,null,null,null,null,null,null,null,null,null,null,null,null,null,168,"21516 Laevatatav kanal, lüüs "]
[null,null,null,null,null,null,null,null,null,null,null,null,null,null,null,null,null,null,null,null,169,"21517 Sadama ohutus-, turva-, side-, valgustus- ja energia- või tehnorajatis "]
[null,null,null,null,null,null,null,null,null,null,null,null,null,null,null,null,null,null,null,null,170,"21518 Mere või siseveekogu põhja selle süvendamise teel rajatud laevakanal "]
[null,null,null,null,null,null,null,null,null,null,null,null,null,null,null,null,null,null,null,null,171,"21519 Muu sadama juurde kuuluv rajatis "]
[null,null,null,null,null,null,null,null,null,null,null,null,null,null,null,null,null,null,null,null,172,"21520 Tammid ja paisud"]
[null,null,null,null,null,null,null,null,null,null,null,null,null,null,null,null,null,null,null,null,173,"21521 Tamm "]
[null,null,null,null,null,null,null,null,null,null,null,null,null,null,null,null,null,null,null,null,174,"21522 Pais"]
[null,null,null,null,null,null,null,null,null,null,null,null,null,null,null,null,null,null,null,null,175,"21523 Kaldakindlustus"]
[null,null,null,null,null,null,null,null,null,null,null,null,null,null,null,null,null,null,null,null,176,"21530 Akveduktid, niisutus- ja kuivendusrajatised21531 Niisutusrajatis "]
[null,null,null,null,null,null,null,null,null,null,null,null,null,null,null,null,null,null,null,null,177,"21532 Kuivendusrajatis "]
[null,null,null,null,null,null,null,null,null,null,null,null,null,null,null,null,null,null,null,null,178,"21533 Veehoidla, bassein "]
[null,null,null,null,null,null,null,null,null,null,null,null,null,null,null,null,null,null,null,null,179,"21534 Akvedukt "]
[null,null,null,null,null,null,null,null,null,null,null,null,null,null,null,null,null,null,null,null,180,"21539 Muu niisutus- või kuivendusrajatis "]
[null,null,null,null,null,null,null,null,null,null,null,null,null,null,null,null,null,null,null,null,181,"21600 Köisteed"]
[null,null,null,null,null,null,null,null,null,null,null,null,null,null,null,null,null,null,null,null,182,"21601 Funikulaarraudtee "]
[null,null,null,null,null,null,null,null,null,null,null,null,null,null,null,null,null,null,null,null,183,"21602 Köissõiduk"]
[null,null,null,null,null,null,null,null,null,null,null,null,null,null,null,null,null,null,null,null,184,"21603 Vedamislift"]
[null,null,null,null,null,null,null,null,null,null,null,null,null,null,null,null,null,null,null,null,185,"21604 Muu nimetamata köistee"]
[null,null,null,null,null,null,null,null,null,null,null,null,null,null,null,null,null,null,null,null,186,"22000 TORUJUHTMED, SIDE- JA ELEKTRILIINID"]
[null,null,null,null,null,null,null,null,null,null,null,null,null,null,null,null,null,null,null,null,187,"22100 Magistraaltorujuhtmed, side- ja elektriliinid"]
[null,null,null,null,null,null,null,null,null,null,null,null,null,null,null,null,null,null,null,null,188,"22110 Küttegaasi ülekandetorustik, ülerõhuga üle 16 bar"]
[null,null,null,null,null,null,null,null,null,null,null,null,null,null,null,null,null,null,null,null,189,"22111 Küttegaasi A kategooria jaotustorustik, ülerõhuga kuni 0,1 bar"]
[null,null,null,null,null,null,null,null,null,null,null,null,null,null,null,null,null,null,null,null,190,"22112 Küttegaasi B ja C kategooria jaotustorustik, ülerõhuga üle 0,1 kuni 16 bar"]
[null,null,null,null,null,null,null,null,null,null,null,null,null,null,null,null,null,null,null,null,191,"22113 Küttegaasi D kategooria jaotustorustik, ülerõhuga üle 16 bar"]
[null,null,null,null,null,null,null,null,null,null,null,null,null,null,null,null,null,null,null,null,192,"22114 Küttegaasi jaotus- ja mõõtejaamad"]
[null,null,null,null,null,null,null,null,null,null,null,null,null,null,null,null,null,null,null,null,193,"22115 Küttegaasi tankimis- ja villimisjaamad maa-, vedel-, bio- ja tööstusgaasidele"]
[null,null,null,null,null,null,null,null,null,null,null,null,null,null,null,null,null,null,null,null,194,"22116 LNG terminal"]
[null,null,null,null,null,null,null,null,null,null,null,null,null,null,null,null,null,null,null,null,195,"22117 Küttegaasihoidla"]
[null,null,null,null,null,null,null,null,null,null,null,null,null,null,null,null,null,null,null,null,196,"22118 Küttegaasi kompressorjaam"]
[null,null,null,null,null,null,null,null,null,null,null,null,null,null,null,null,null,null,null,null,197,"22119 Küttegaasi muud ehitised"]
[null,null,null,null,null,null,null,null,null,null,null,null,null,null,null,null,null,null,null,null,198,"22120 Magistraalveetorustikud"]
[null,null,null,null,null,null,null,null,null,null,null,null,null,null,null,null,null,null,null,null,199,"22121 Magistraalveetorustik "]
[null,null,null,null,null,null,null,null,null,null,null,null,null,null,null,null,null,null,null,null,200,"22122 Pinnaveehaare"]
[null,null,null,null,null,null,null,null,null,null,null,null,null,null,null,null,null,null,null,null,201,"22123 Kaugkütte magistraaltorustik "]
[null,null,null,null,null,null,null,null,null,null,null,null,null,null,null,null,null,null,null,null,202,"22129 Muu nimetamata magistraalveetorustiku rajatis "]
[null,null,null,null,null,null,null,null,null,null,null,null,null,null,null,null,null,null,null,null,203,"22130 Side, raadio ja televisiooni magistraalsed ülekanderajatised"]
[null,null,null,null,null,null,null,null,null,null,null,null,null,null,null,null,null,null,null,null,204,"22131 Side, raadio või televisiooni magistraalne õhu- või kaabelülekandeliin või süsteem "]
[null,null,null,null,null,null,null,null,null,null,null,null,null,null,null,null,null,null,null,null,205,"22132 Raadio, televisiooni või mobiiltelefoni saate- või ülekandemast "]
[null,null,null,null,null,null,null,null,null,null,null,null,null,null,null,null,null,null,null,null,206,"22133 Muu side, raadio või televisiooni magistraalne ülekanderajatis "]
[null,null,null,null,null,null,null,null,null,null,null,null,null,null,null,null,null,null,null,null,207,"22140 Elektrienergia ülekandeliinid, välja arvatud kohalik elektrivalgustus (22240)"]
[null,null,null,null,null,null,null,null,null,null,null,null,null,null,null,null,null,null,null,null,208,"22141 35–110 kV õhuliin "]
[null,null,null,null,null,null,null,null,null,null,null,null,null,null,null,null,null,null,null,null,209,"22142 110 kV ja kõrgema pingega õhuliin "]
[null,null,null,null,null,null,null,null,null,null,null,null,null,null,null,null,null,null,null,null,210,"22143 Maakaabelliin "]
[null,null,null,null,null,null,null,null,null,null,null,null,null,null,null,null,null,null,null,null,211,"22144 Veekaabelliin "]
[null,null,null,null,null,null,null,null,null,null,null,null,null,null,null,null,null,null,null,null,212,"22145 110 kV ja kõrgema pingega trafoalajaam "]
[null,null,null,null,null,null,null,null,null,null,null,null,null,null,null,null,null,null,null,null,213,"22149 Muu elektrienergia ülekandeliiniga seotud rajatis "]
[null,null,null,null,null,null,null,null,null,null,null,null,null,null,null,null,null,null,null,null,214,"22200 Kohalikud torustikud, elektri- ja sideliinid"]
[null,null,null,null,null,null,null,null,null,null,null,null,null,null,null,null,null,null,null,null,215,"22210 Gaasijaotustorustikud"]
[null,null,null,null,null,null,null,null,null,null,null,null,null,null,null,null,null,null,null,null,216,"22211 Gaasijaotustorustik arvestusrõhuga kuni 5 bar"]
[null,null,null,null,null,null,null,null,null,null,null,null,null,null,null,null,null,null,null,null,217,"22212 Regulaatorpunkt arvestusrõhuga kuni 5 bar"]
[null,null,null,null,null,null,null,null,null,null,null,null,null,null,null,null,null,null,null,null,218,"22213 Gaasihoidla rajatis "]
[null,null,null,null,null,null,null,null,null,null,null,null,null,null,null,null,null,null,null,null,219,"22219 Muu gaasivarustusega seotud rajatis "]
[null,null,null,null,null,null,null,null,null,null,null,null,null,null,null,null,null,null,null,null,220,"22220 Veejaotustorustikud"]
[null,null,null,null,null,null,null,null,null,null,null,null,null,null,null,null,null,null,null,null,221,"22221 Külmaveetorustik "]
[null,null,null,null,null,null,null,null,null,null,null,null,null,null,null,null,null,null,null,null,222,"22222 Soojaveetorustik "]
[null,null,null,null,null,null,null,null,null,null,null,null,null,null,null,null,null,null,null,null,223,"22223 Kaugküttetorustik 22224 Puurauk"]
[null,null,null,null,null,null,null,null,null,null,null,null,null,null,null,null,null,null,null,null,224,"22225 Veetorn (rajatis) "]
[null,null,null,null,null,null,null,null,null,null,null,null,null,null,null,null,null,null,null,null,225,"22226 Salvkaev"]
[null,null,null,null,null,null,null,null,null,null,null,null,null,null,null,null,null,null,null,null,226,"22227 Hüdrant"]
[null,null,null,null,null,null,null,null,null,null,null,null,null,null,null,null,null,null,null,null,227,"22228 Puurkaev "]
[null,null,null,null,null,null,null,null,null,null,null,null,null,null,null,null,null,null,null,null,228,"22229 Muu kohaliku veetorustikuga seotud rajatis "]
[null,null,null,null,null,null,null,null,null,null,null,null,null,null,null,null,null,null,null,null,229,"22230 Kanalisatsiooniehitised"]
[null,null,null,null,null,null,null,null,null,null,null,null,null,null,null,null,null,null,null,null,230,"22231 Kanalisatsioonitorustik "]
[null,null,null,null,null,null,null,null,null,null,null,null,null,null,null,null,null,null,null,null,231,"22232 Reovee kollektor"]
[null,null,null,null,null,null,null,null,null,null,null,null,null,null,null,null,null,null,null,null,232,"22233 Reoveepuhasti"]
[null,null,null,null,null,null,null,null,null,null,null,null,null,null,null,null,null,null,null,null,233,"22234 Veepumpla"]
[null,null,null,null,null,null,null,null,null,null,null,null,null,null,null,null,null,null,null,null,234,"22235 Reoveepumpla"]
[null,null,null,null,null,null,null,null,null,null,null,null,null,null,null,null,null,null,null,null,235,"22239 Muu reovee kogumise, puhastamise ja heitvee suublasse juhtimisega seotud rajatis "]
[null,null,null,null,null,null,null,null,null,null,null,null,null,null,null,null,null,null,null,null,236,"22240 Elektrijaotusvõrgud ja sideliinid"]
[null,null,null,null,null,null,null,null,null,null,null,null,null,null,null,null,null,null,null,null,237,"22241 kuni 1 kV jaotusvõrgu elektri õhuliin "]
[null,null,null,null,null,null,null,null,null,null,null,null,null,null,null,null,null,null,null,null,238,"22242 üle 1 kV ja kuni 35 kV jaotusvõrgu elektri õhuliin "]
[null,null,null,null,null,null,null,null,null,null,null,null,null,null,null,null,null,null,null,null,239,"22243 Elektri maakaabelliin "]
[null,null,null,null,null,null,null,null,null,null,null,null,null,null,null,null,null,null,null,null,240,"22244 Elektri merekaabelliin "]
[null,null,null,null,null,null,null,null,null,null,null,null,null,null,null,null,null,null,null,null,241,"22245 Side õhu- või kaabelliin "]
[null,null,null,null,null,null,null,null,null,null,null,null,null,null,null,null,null,null,null,null,242,"22246 6–35 kV alajaam ja jaotusseade "]
[null,null,null,null,null,null,null,null,null,null,null,null,null,null,null,null,null,null,null,null,243,"22247 Televisioonikaabel või ühisantenn "]
[null,null,null,null,null,null,null,null,null,null,null,null,null,null,null,null,null,null,null,null,244,"22249 Muu kohalik elektrijaotusvõrgu või sideliini rajatis "]
[null,null,null,null,null,null,null,null,null,null,null,null,null,null,null,null,null,null,null,null,245,"23000 TÖÖSTUSEHITISTE JUURDE KUULUVAD RAJATISED"]
[null,null,null,null,null,null,null,null,null,null,null,null,null,null,null,null,null,null,null,null,246,"23010 Maavarade kaevandamise ja töötlemise rajatised"]
[null,null,null,null,null,null,null,null,null,null,null,null,null,null,null,null,null,null,null,null,247,"23011 Kaevandusrajatis "]
[null,null,null,null,null,null,null,null,null,null,null,null,null,null,null,null,null,null,null,null,248,"23012 Karjäärirajatis "]
[null,null,null,null,null,null,null,null,null,null,null,null,null,null,null,null,null,null,null,null,249,"23020 Energiatööstuse rajatised"]
[null,null,null,null,null,null,null,null,null,null,null,null,null,null,null,null,null,null,null,null,250,"23021 Hüdroelektrijaama rajatis "]
[null,null,null,null,null,null,null,null,null,null,null,null,null,null,null,null,null,null,null,null,251,"23022 Soojuselektrijaama rajatis "]
[null,null,null,null,null,null,null,null,null,null,null,null,null,null,null,null,null,null,null,null,252,"23023 Tuuleelektrijaama rajatis "]
[null,null,null,null,null,null,null,null,null,null,null,null,null,null,null,null,null,null,null,null,253,"23024 Tuumaelektrijaama rajatis "]
[null,null,null,null,null,null,null,null,null,null,null,null,null,null,null,null,null,null,null,null,254,"23025 Korsten "]
[null,null,null,null,null,null,null,null,null,null,null,null,null,null,null,null,null,null,null,null,255,"23029 Muu energiatööstuse rajatis "]
[null,null,null,null,null,null,null,null,null,null,null,null,null,null,null,null,null,null,null,null,256,"23030 Keemiatööstuse rajatised"]
[null,null,null,null,null,null,null,null,null,null,null,null,null,null,null,null,null,null,null,null,257,"23031 Keemiatööstuse rajatis "]
[null,null,null,null,null,null,null,null,null,null,null,null,null,null,null,null,null,null,null,null,258,"23040 Rasketööstuse rajatis"]
[null,null,null,null,null,null,null,null,null,null,null,null,null,null,null,null,null,null,null,null,259,"23041 Rasketööstuse rajatis "]
[null,null,null,null,null,null,null,null,null,null,null,null,null,null,null,null,null,null,null,null,260,"23050 Muude tööstusharude rajatised"]
[null,null,null,null,null,null,null,null,null,null,null,null,null,null,null,null,null,null,null,null,261,"23051 Toiduainetetööstuse rajatis "]
[null,null,null,null,null,null,null,null,null,null,null,null,null,null,null,null,null,null,null,null,262,"23052 Ehitusmaterjalide ja -toodete tööstuse rajatis "]
[null,null,null,null,null,null,null,null,null,null,null,null,null,null,null,null,null,null,null,null,263,"23053 Kergetööstuse rajatis "]
[null,null,null,null,null,null,null,null,null,null,null,null,null,null,null,null,null,null,null,null,264,"23054 Puidutööstuse rajatis "]
[null,null,null,null,null,null,null,null,null,null,null,null,null,null,null,null,null,null,null,null,265,"23055 Masina- ja seadmetööstuse rajatis "]
[null,null,null,null,null,null,null,null,null,null,null,null,null,null,null,null,null,null,null,null,266,"23059 Muu nimetamata tööstusharu rajatis "]
[null,null,null,null,null,null,null,null,null,null,null,null,null,null,null,null,null,null,null,null,267,"24000 MUUD RAJATISED"]
[null,null,null,null,null,null,null,null,null,null,null,null,null,null,null,null,null,null,null,null,268,"24100 Spordi- ja puhkerajatised"]
[null,null,null,null,null,null,null,null,null,null,null,null,null,null,null,null,null,null,null,null,269,"24110 Staadionid ja spordiväljakud, välja arvatud mängu- ja golfiväljakud (24123), lõbustus- ja puhkepargid (24121)24111 Spordiväljak või staadion "]
[null,null,null,null,null,null,null,null,null,null,null,null,null,null,null,null,null,null,null,null,270,"24112 Liuväli"]
[null,null,null,null,null,null,null,null,null,null,null,null,null,null,null,null,null,null,null,null,271,"24113 Veespordirajatis, välisujula "]
[null,null,null,null,null,null,null,null,null,null,null,null,null,null,null,null,null,null,null,null,272,"24114 Motodroom, motoringrada "]
[null,null,null,null,null,null,null,null,null,null,null,null,null,null,null,null,null,null,null,null,273,"24115 Velodroom "]
[null,null,null,null,null,null,null,null,null,null,null,null,null,null,null,null,null,null,null,null,274,"24116 Hipodroom "]
[null,null,null,null,null,null,null,null,null,null,null,null,null,null,null,null,null,null,null,null,275,"24120 Muud spordi- ja puhkerajatised"]
[null,null,null,null,null,null,null,null,null,null,null,null,null,null,null,null,null,null,null,null,276,"24121 Lõbustus- ja puhkepargirajatis "]
[null,null,null,null,null,null,null,null,null,null,null,null,null,null,null,null,null,null,null,null,277,"24122 Botaanikaaia ja loomaaiarajatis "]
[null,null,null,null,null,null,null,null,null,null,null,null,null,null,null,null,null,null,null,null,278,"24123 Golfiväljak "]
[null,null,null,null,null,null,null,null,null,null,null,null,null,null,null,null,null,null,null,null,279,"24124 Supelrannarajatis "]
[null,null,null,null,null,null,null,null,null,null,null,null,null,null,null,null,null,null,null,null,280,"24125 Trampliin"]
[null,null,null,null,null,null,null,null,null,null,null,null,null,null,null,null,null,null,null,null,281,"24127 Rollerirada "]
[null,null,null,null,null,null,null,null,null,null,null,null,null,null,null,null,null,null,null,null,282,"24128 Spordiotstarbelise sadama rajatis või meremärk "]
[null,null,null,null,null,null,null,null,null,null,null,null,null,null,null,null,null,null,null,null,283,"24129 Muu nimetamata spordi- või puhkerajatis "]
[null,null,null,null,null,null,null,null,null,null,null,null,null,null,null,null,null,null,null,null,284,"24200 Muud rajatised"]
[null,null,null,null,null,null,null,null,null,null,null,null,null,null,null,null,null,null,null,null,285,"24210 Erirajatised"]
[null,null,null,null,null,null,null,null,null,null,null,null,null,null,null,null,null,null,null,null,286,"24211 Sisekaitse- või kaitseväerajatis "]
[null,null,null,null,null,null,null,null,null,null,null,null,null,null,null,null,null,null,null,null,287,"24212 Piirdeaiad ja väravad"]
[null,null,null,null,null,null,null,null,null,null,null,null,null,null,null,null,null,null,null,null,288,"24213 Monument, skulptuur, mälestusmärk, purskkaev "]
[null,null,null,null,null,null,null,null,null,null,null,null,null,null,null,null,null,null,null,null,289,"24214 Eksponeerimisotstarbega rajatis "]
[null,null,null,null,null,null,null,null,null,null,null,null,null,null,null,null,null,null,null,null,290,"24215 Kalmistu "]
[null,null,null,null,null,null,null,null,null,null,null,null,null,null,null,null,null,null,null,null,291,"24216 Prügimäerajatis "]
[null,null,null,null,null,null,null,null,null,null,null,null,null,null,null,null,null,null,null,null,292,"24219 Muu nimetamata rajatis"]
[null,null,null,null,null,null,null,null,null,null,null,null,null,null,null,null,null,null,null,null,293,"24220 Laomajandusrajatised"]
[null,null,null,null,null,null,null,null,null,null,null,null,null,null,null,null,null,null,null,null,294,"24221 Rajatis vedel- või gaasikütuse hoidmiseks "]
[null,null,null,null,null,null,null,null,null,null,null,null,null,null,null,null,null,null,null,null,295,"24222 Elevaator või rajatis puisteaine hoidmiseks "]
[null,null,null,null,null,null,null,null,null,null,null,null,null,null,null,null,null,null,null,null,296,"24223 Laoplats või laoväljak "]
[null,null,null,null,null,null,null,null,null,null,null,null,null,null,null,null,null,null,null,null,297,"24229 Muu nimetamata laomajandusrajatis "]
[null,null,null,null,null,null,null,null,null,null,null,null,null,null,null,null,null,null,null,null,298,"24230 Põllumajanduse, metsa-, jahi- ja kalamajandusrajatised"]
[null,null,null,null,null,null,null,null,null,null,null,null,null,null,null,null,null,null,null,null,299,"24231 Sõnnikuhoidla rajatis"]
[null,null,null,null,null,null,null,null,null,null,null,null,null,null,null,null,null,null,null,null,300,"24232 Vesiviljelusehitis (tiigid, basseinid, kiirvoolukanalid, regulaatorid, veekogu kohandamiseks vajalikud rajatised, sisekasvatushooned, haudemajad, kalahoidlad, piirderajatised jms)"]
[null,null,null,null,null,null,null,null,null,null,null,null,null,null,null,null,null,null,null,null,301,"24233 Rajatis põllumajandussaaduste või loomasööda hoidmiseks"]

{"sheet":"Kasutusjuhend","index":2,"n_rows":79,"n_cols":3,"rows_kept":79,"cut":false,"hidden":false,"merged":[[4,0,4,2],[1,0,1,2],[3,0,3,2],[5,0,5,2]]}
[]
["HINNAPAKKUMUSE VORMI TÄITMISE JUHEND"]
[]
["Hinnapakkumuse vorm tuleb PRIA-le esitada elektroonselt Microsoft Excel tarkvaraga töödeldavas vormingus. Andmete esitamine mõnes teises formaadis (*.pdf, *.doc jne) ei ole lubatud. \nInvesteeringuobjekti hinnapakkumuse vorm koosneb kolmest infoplokist: pakkuja andmed, investeeringuobjekti andmed ning ehitustegevuse eelarve. Pakkumuse koostaja täidab ettevõtte kohta käivad andmed (ärinimi, ettevõtte registrikood, telefon, e-post, majandustegevus nr). Ehitusinvesteeringu pakkumuse saab esitada asjakohast teenust pakkuv ettevõte, kellel on täidetud ehitusseadustiku §24 kohane kutsekvalifikatsiooninõue.  \n\nLisaks kontaktandmetele tuleb pakkumuses ära märkida pakkumuse kehtivus (päevades) ja pakkumuse esitamise aeg ning pakkumuse nr. \n\nVormile tuleb märkida ehitusprojekti kohane investeeringuobjekti nimetus, ehitisregistri kood ning katastritunnus. \n\nHinnapakkumuse vormi täitmise aluseks on projekteerija poolt koostatud projektidokumentatsioon ning mahtude tabel. Juhul kui ehitusprojekt eelarve vormis välja toodud tegevust ette ei näe, siis jäetakse antud väli täitmata või sisestatakse ühiku mahu ja maksumuse reale väärtus 0 (ridade kustutamine on keelatud). \nHinnapakkumus on tervik, mis kajastab ehitusprojektis ettenähtud tööde mahtusid ning nende maksumust. Juhul kui mingeid ehitusprojektijärgseid töid teha ei planeerita siis tuleb need tööd ülesse märkida lisainformatsiooni lahtris.   \n\nEelarves olevate mahtude märkimisel tuleb silmas pidada töömahtude mõõtmise ja tööde arvestamise reegleid. Nt. kui tegemist on kaevetöödega, siis ei ole kohane märkida komplekti hind vaid märkida tuleb kas m2, m3 või kraavide puhul m, m3. "]
["EELTÄIDETUD VORMIL ON ETTE ANTUD PÕHIRÜHMA KULUDE READ. KULUDE SISESTAMISEL ON VÕIMALIK RIDASID JUURDE LISADA - VORMI STRUKTUURI SEEJUURES MUUTA EI TOHI!"]
["HINNAPAKKUMUSE KOOSTAMISEKS VAJUTA SIIA"]
[]
[1,"REA NIMETUS","SELGITUS"]
[null,"Taotleja"]
[null,"Pakkumuse esitaja andmed"]
[null,"Pakkumuse esitaja:"]
[null,"Pakkumuse koostas (eesnimi, perekonnanimi):"]
[null,"Registrikood:"]
[null,"tel:"]
[null,"e-post:"]
[null,"Majandustegevusteate number:","Märkida kui vastavalt ehitusseadustikule (EhS §24) on ehitusinvesteeringu ehitamiseks vajalik pädeva isiku kvalifikatsiooni tõendamine. "]
[null,"Pakkumus kehtib (päeva):"]
[null,"Pakkumus kehtib (päeva):"]
[null,"Pakkumuse esitamise kuupäev: "]
[null,"Pakkumuse nr:"]
[null,"Ehitise andmed"]
[null,"Ehitise nimetus","Ehitise nimetus "]
[null,"Ehitisregistri kood","Kui tegemist on ehitusseadustiku järg loakohustusliku ehitamisega (kohustus välja toodud EhS Lisa 1) või nõuab kohalik omavalitsus loa taotlemist (EhS § 35 lg 4, §38 lg 3). "]
[null,"Katastritunnus","Ehitusinvesteeringu katastriüksuse nr"]
[null,"Ehitusprojekti koostaja ja ehitsuprojekti nr","Märkida hinnapakkumuse aluseks oleva ehitusprojekti koostaja ning ehitusprojekti nr"]
[null,"Lisainformatsioon","PRIA lähtub ehitusest kui tervikust, st. kõik ehitusprojekti järgsed tööd tuleb teostada. Juhul kui pakkumuse võtmisel ei planeerita täies mahus ehitusprojeketis ette nähtud töid teostada siis tuleb need üksikasjalikult lahti kirjutada.  "]
[null,"1 VÄLISRAJATISED"]
[null,"11 Ettevalmistus ja lammutus"]
[null,"12 Hoonealune süvend","rajatiste puhul kajastada antud kulureal rajatisealuse süvendi kaevamist/täiteid. "]
[null,"13 Hoonevälised ehitised"]
[null,"14 Välisvõrgud"]
[null,"15 Kaeved maa-alal"]
[null,"16 Maa-ala pinnakatted"]
[null,"2 ALUSED JA VUNDAMENDID"]
[null,"21 Rostvärgid ja taldmikud"]
[null,"22 Vundamendid"]
[null,"23 Aluspõrandad"]
[null,"24 Vaiad ja tugevdustarindid"]
[null,"25 Eritarindid"]
[null,"3 KANDETARINDID"]
[null,"31 Metalltarindid"]
[null,"32 Kandvad ja välisseinad"]
[null,"33 Vahe- ja katuslaed"]
[null,"34 Trepielemendid"]
[null,"4 FASSAADIELEMENDID JA KATUSED"]
[null,"41 Klaasfassaadid, vitriinid ja eriaknad"]
[null,"42 Aknad"]
[null,"43 Välisuksed ja väravad"]
[null,"44 Rõdud ja terrassid"]
[null,"45 Piirded ja käiguteed"]
[null,"46 Katusetarindid"]
[null,"5 RUUMITARINDID JA PINNAKATTED"]
[null,"51 Vaheseinad"]
[null,"52 Siseuksed"]
[null,"53 Siseseinte pinnakatted"]
[null,"54 Lagede pinnakatted"]
[null,"55 Treppide pinnakatted"]
[null,"56 Põrandad ja põrandakatted"]
[null,"57 Eriruumide pinnakatted"]
[null,"6 TEHNOSÜSTEEMID"]
[null,"61 Veevarustus ja kanalisatsioon"]
[null,"62 Küte, ventilatsioon ja jahutus"]
[null,"63 Tuletõrjevarustus"]
[null,"64 Tugevvoolupaigaldis"]
[null,"65 Nõrkvoolupaigaldis ja automaatika"]
[null,"7 EHITUSPLATSI KORRALDUSKULUD"]
[null,"71 Ajutised ehitised ehitusplatsil"]
[null,"72 Ajutised tehnosüsteemid"]
[null,"73 Masinad ja seadmed"]
[null,"74 Tööriistad ja instrumendid"]
[null,"75 Abimaterjalid"]
[null,"76 Energiakulu"]
[null,"77 Veod"]
[null,"8 EHITUSPLATSI ÜLDKULUD"]
[null,"81 Juhtimiskulud"]
[null,"82 Kulud abistavatele tegevustele"]
[null,"83 Erikulud seoses tegevusega välisriikides"]
[null,"84 Talvised lisakulud51"]
[null,"85 Lepingu erikulud"]